Cogmind - Beta 9.6 @@@ ROGUE MODE // 2020.06.07 @ 18:58:48 Player: Ben'n'Dan Result: Self-destructed Performance ------------- Evolutions (2) 1000 Regions Visited (3) 600 Robots Destroyed (0) 0 Value Destroyed (0) 0 Prototype IDs (2) 40 Alien Tech Used (0) 0 Bonus (470) 470 TOTAL SCORE: 2110 Bonus ------- Pacifist 470 Cogmind --------- Core Integrity 550/550 Matter 188/300 Energy 99/100 System Corruption 0% Temperature Cool (0) Movement Core (50) Location -8/Materials Parts ------- > --- POWER (1) -------- (None) > --- PROPULSION (4) --- (None) > --- UTILITY (4) ------ (None) > --- WEAPON (2) ------- Grenade Launcher > --- INVENTORY (4) ---- Light Ion Engine Assault Rifle Peak State ------------ > --- POWER ------------ (None) > --- PROPULSION ------- (None) > --- UTILITY ---------- (None) > --- WEAPON ----------- Grenade Launcher Rocket Launcher > --- INVENTORY -------- Light Ion Engine Assault Rifle [Rating: 3] Favorites ----------- Power Light Ion Engine Engine Light Ion Engine Propulsion None Utility None Weapon Assault Rifle Ballistic Gun Assault Rifle Launcher Grenade Launcher Build | -11 -10 -9 -8 ------- Run | Scr Mat Mat Mat Slots Evolved 4 | . . 2 2 Power . | . . . . Propulsion 2 | . . 1 1 Utility 2 | . . 1 1 Weapon . | . . . . Parts Attached 4 | 2 . 2 . Power 1 | 1 . . . Engine 1 | 1 . . . Core . | . . . . Reactor . | . . . . Propulsion . | . . . . Treads . | . . . . Leg . | . . . . Wheel . | . . . . Hover . | . . . . Flight . | . . . . Utility . | . . . . Device . | . . . . Storage . | . . . . Processor . | . . . . Hackware . | . . . . Protection . | . . . . Artifact . | . . . . Weapon 3 | 1 . 2 . Energy Gun . | . . . . Energy Cannon . | . . . . Ballistic Gun 1 | 1 . . . Ballistic Cannon . | . . . . Launcher 2 | . . 2 . Special Weapon . | . . . . Impact Weapon . | . . . . Slashing Weapon . | . . . . Piercing Weapon . | . . . . Special Melee Weapon . | . . . . Unidentified Prototypes . | . . . . Parts Lost . | . . . . Power . | . . . . Propulsion . | . . . . Utility . | . . . . Weapon . | . . . . Highest Loss Streak . | . . . . Average Slot Usage (%) 12 | . 14 12 9 Ballistic Gun 7 | . 14 5 . Launcher 5 | . . 7 9 Naked Turns . | . . . . Heaviest Build 5 | 5 2 3 3 Greatest Support 3 | 3 3 3 3 Greatest Overweight (x) 1 | 1 . . . Average Overweight (x) . | . . . . Largest Inventory Capacity 4 | 4 4 4 4 Average Capacity 4 | 4 4 4 4 Most Carried 2 | 1 2 2 2 Average Carried 1 | . 1 1 2 Final Capacity 4 | 4 4 4 4 Final Carried 2 | 1 2 2 2 Class Distribution -------------------- 100% | Mutant Dominant Class ---------------- Mutant | -10/Materials Mutant | -9/Materials Mutant | -8/Materials Resources | -11 -10 -9 -8 ----------- Run | Scr Mat Mat Mat Matter Collected 220 | 160 60 . . Remotely . | . . . . Salvage Created . | . . . . Parts . | . . . . Haulers Intercepted . | . . . . Recyclers Shooed . | . . . . Parts Field Recycled . | . . . . Retrieved Matter . | . . . . Parts Self-Destructed . | . . . . Prevented . | . . . . Kills | -11 -10 -9 -8 ------- Run | Scr Mat Mat Mat Combat Hostiles Destroyed . | . . . . Classes Destroyed . | . . . . Best Kill Streak . | . . . . Combat Bots Only . | . . . . Max Kills in Single Turn . | . . . . Gunslinging . | . . . . Exploded . | . . . . Melee . | . . . . Uniques/NPCs Destroyed . | . . . . Combat | -11 -10 -9 -8 -------- Run | Scr Mat Mat Mat Damage Taken 2 | . . 2 . Core . | . . . . Absorbed by Shields . | . . . . Core Remaining (%) 100 | 100 100 100 . Volleys Fired 9 | . . 9 . Largest 1 | . . 1 . Hottest 33 | . . 33 . Shots Fired 9 | . . 9 . Gun . | . . . . Cannon . | . . . . Launcher 9 | . . 9 . Special . | . . . . Kinetic . | . . . . Thermal . | . . . . Explosive 9 | . . 9 . Electromagnetic . | . . . . Robot Hit Streak . | . . . . Robot Miss Streak . | . . . . Penetration Max . | . . . . Secondary Targets . | . . . . Shots Hit Robots . | . . . . Core Hits . | . . . . Critical Hits . | . . . . Critical Kills . | . . . . Critical Parts Destroyed . | . . . . Melee Attacks . | . . . . Impact . | . . . . Slashing . | . . . . Piercing . | . . . . Sneak Attacks . | . . . . Combat Hostiles . | . . . . Follow-up Attacks . | . . . . Damage Inflicted . | . . . . Guns . | . . . . Cannons . | . . . . Explosions . | . . . . Melee . | . . . . Ramming . | . . . . Kinetic . | . . . . Thermal . | . . . . Explosive . | . . . . Electromagnetic . | . . . . Impact . | . . . . Slashing . | . . . . Piercing . | . . . . Highest Corruption . | . . . . Average Corruption . | . . . . Corruption Purged . | . . . . Overload Shots . | . . . . Overflow Damage . | . . . . Projectiles . | . . . . Explosions . | . . . . Melee . | . . . . Knockbacks . | . . . . Impact . | . . . . Kinetic . | . . . . Secondary . | . . . . Self-Inflicted Damage 2 | . . 2 . Shots 1 | . . 1 . Rammed . | . . . . Targets Rammed . | . . . . Kicked . | . . . . Crushed . | . . . . Highest Temperature 2 | . . 2 . Average Temperature 2 | . . 2 . Received Heat Transfer . | . . . . Siege Activations . | . . . . Robots Corrupted . | . . . . Combat Hostiles . | . . . . Parts Fried . | . . . . Impact Corruptions . | . . . . Robots Melted . | . . . . Combat Hostiles . | . . . . Parts Melted . | . . . . Heat Transferred . | . . . . Parts Sabotaged . | . . . . Parts Stolen . | . . . . Parts Stripped . | . . . . Power Chain Reactions . | . . . . Missiles Intercepted . | . . . . Alert | -11 -10 -9 -8 ------- Run | Scr Mat Mat Mat Peak Influence 22 | . 9 17 22 Average Influence 8 | . 4 14 10 Maximum Alert Level . | . . . . Low Security (%) 100 | 100 100 100 100 Level 1 . | . . . . Level 2 . | . . . . Level 3 . | . . . . Level 4 . | . . . . Level 5 . | . . . . High Security . | . . . . Max Security . | . . . . Squads Dispatched 1 | . . . 1 Investigation . | . . . . Extermination . | . . . . Reinforcement 1 | . . . 1 Assault . | . . . . Garrison . | . . . . Intercept . | . . . . Construction Impeded . | . . . . Haulers Reinforced . | . . . . Stealth | -11 -10 -9 -8 --------- Run | Scr Mat Mat Mat Distress Signals . | . . . . Communications Jammed . | . . . . Distress Signals . | . . . . Times Spotted 3 | . . 2 1 Peak Tracking Total 2 | . . 2 1 Tactical Retreats . | . . . . Traps | -11 -10 -9 -8 ------- Run | Scr Mat Mat Mat Traps Triggered . | . . . . Indirectly . | . . . . Trap Hack Attempts . | . . . . Triggered . | . . . . Disarmed . | . . . . Reprogrammed . | . . . . Reused . | . . . . Traps Extracted . | . . . . Installed . | . . . . Triggered . | . . . . Machines | -11 -10 -9 -8 ---------- Run | Scr Mat Mat Mat Machines Disabled . | . . . . Max in Single Turn . | . . . . Machines Sabotaged . | . . . . Garrisons Compromised . | . . . . Overloaded Fab Kills . | . . . . Fab Network Shutdowns . | . . . . Hacking | -11 -10 -9 -8 --------- Run | Scr Mat Mat Mat Machines Accessed 3 | . 1 1 1 Terminals 3 | . 1 1 1 Fabricators . | . . . . Repair Stations . | . . . . Recycling Units . | . . . . Scanalyzers . | . . . . Garrison Access . | . . . . Total Hacks 10 | . 3 5 2 Successful 5 | . 2 3 . Failed 5 | . 1 2 2 Catastrophic 2 | . . . 2 Database Lockouts . | . . . . Manual 4 | . 1 1 2 Terminals 10 | . 3 5 2 Fabricators . | . . . . Repair Stations . | . . . . Recycling Units . | . . . . Scanalyzers . | . . . . Garrison Access . | . . . . Terminal Hacks 5 | . 2 3 . Prototype ID Bank 1 | . . 1 . Level Access Points 2 | . 1 1 . Zone Layout 2 | . 1 1 . Fabricator Hacks . | . . . . Repair Station Hacks . | . . . . Recycling Unit Hacks . | . . . . Scanalyzer . | . . . . Garrison Access Hacks . | . . . . Unauthorized Hacks . | . . . . Terminals . | . . . . Fabricators . | . . . . Repair Stations . | . . . . Recycling Units . | . . . . Scanalyzers . | . . . . Garrison Access . | . . . . Data Cores Recovered . | . . . . Used . | . . . . Hacking Detections 1 | . . . 1 Full Trace Events 1 | . . . 1 Feedback Events . | . . . . Feedback Blocked . | . . . . Robot Schematics Acquired . | . . . . Robots Built . | . . . . Matter . | . . . . Time . | . . . . Total Robot Build Rating . | . . . . Part Schematics Acquired . | . . . . Parts Built . | . . . . Matter . | . . . . Time . | . . . . Total Part Build Rating . | . . . . Parts Repaired . | . . . . Time . | . . . . Parts Recycled . | . . . . Recycled Matter . | . . . . Retrieved Matter . | . . . . Retrieved Components . | . . . . Parts Scanalyzed . | . . . . Part Schematics Acquired . | . . . . Parts Damaged . | . . . . Bothacking | -11 -10 -9 -8 ------------ Run | Scr Mat Mat Mat Used RIF Installer . | . . . . Robots Hacked . | . . . . Non-combat . | . . . . Combat . | . . . . Robot Hacks Applied . | . . . . Relay Couplers Released . | . . . . Robots Rewired . | . . . . Allies Hacked . | . . . . Hacks Repelled . | . . . . Allies | -11 -10 -9 -8 -------- Run | Scr Mat Mat Mat Total Allies . | . . . . Largest Group . | . . . . Highest-Rated Group . | . . . . Highest-Rated Ally . | . . . . Total Orders . | . . . . Ally Attacks . | . . . . Total Damage . | . . . . Kills . | . . . . Allies Corrupted . | . . . . Allies Melted . | . . . . Intel | -11 -10 -9 -8 ------- Run | Scr Mat Mat Mat Robot Analysis Total . | . . . . Derelict Logs Recovered . | . . . . Drone Launches . | . . . . Drone Recoveries . | . . . . Exploration | -11 -10 -9 -8 ------------- Run | Scr Mat Mat Mat Turns Passed 144 | 25 38 62 19 Spaces Moved 228 | 37 74 80 37 Core 228 | 37 74 80 37 Treads . | . . . . Legs . | . . . . Wheels . | . . . . Hover . | . . . . Flight . | . . . . Fastest Speed 50 | 50 50 50 50 Average Speed 51 | 58 50 50 50 Slowest Speed 100 | 100 50 50 50 Overloaded Moves . | . . . . Propulsion Burnouts . | . . . . Robots Hopped . | . . . . Cave-ins Triggered . | . . . . Exploration Rate (%) 10 | 3 21 11 6 Regions Visited 3 Branch Regions . Pre-discovered Areas . | . . . . Known Exits Taken 2 | . 1 1 . Unknown Exits Taken 1 | 1 . . . Scrap Searched . | . . . . Spaces Dug 57 | . . 57 . Terrain Destroyed 64 | . . 64 . Melee . | . . . . Projectile . | . . . . AOE 64 | . . 64 . Actions | -11 -10 -9 -8 --------- Run | Scr Mat Mat Mat Total 242 | 39 74 92 37 Wait . | . . . . Move 225 | 36 73 79 37 Hop . | . . . . Pick Up 1 | . 1 . . Fast Attach 3 | 2 . 1 . Attach 1 | . . 1 . Detach 2 | 1 . 1 . Swap . | . . . . Drop 1 | . . 1 . Fire 9 | . . 9 . Melee . | . . . . Ram . | . . . . Kick . | . . . . Crush . | . . . . Escape Stasis . | . . . . Rewire . | . . . . Trap . | . . . . Miscellaneous . | . . . . Route ------- -11/Scrapyard -10/Materials (discovered 3 exits: *Mat x3) -9/Materials (discovered 3 exits: *Mat x3) -8/Materials History --------- Turn | Location | Event 4 | -11/Scrapyard | Discovered new exit (range 16) 26 | -11/Scrapyard | Entered Materials 44 | -10/Materials | Identified exit to Materials 64 | -10/Materials | Entered another Materials area 64 | -9/Materials | Evolved 2 slots: Propulsion x1, Utility x1 77 | -9/Materials | Identified exit to Materials 126 | -9/Materials | Entered another Materials area 126 | -8/Materials | Evolved 2 slots: Propulsion x1, Utility x1 145 | -8/Materials | Self-destructed Last Messages --------------- (50,8) Map updated. >>Layout(Zone) Retrieving Zone 1A layout... Downloaded map data. >>Prototypes Downloading prototype IDs... Hvy. Particle Gun Hvy. Ion Engine 00086_ T-07 Excavator is excavating. 00109_ Acquired Rocket Launcher. 00114_ The unstable cave ceiling collapses. 00114_ Dropped Rocket Launcher. 00116_ The unstable cave ceiling collapses. PARAMETERS=PROPULSION_1,UTILITY_1 LOCATION=MATERIALS GOAL=ESCAPE 00137_ K-01 Serf collects debris. 00141_ ALERT: Hostiles spotted, dispatching reinforcements to Terminal M004. 00145_ Connecting with Terminal... Map ----- +----------------------------------------------------+ | ???????????????????????????????????????????? | | ???????????????????????????????????????????? | | ???????????????????????????????????????????? | | ???????????????????????????????????????????? | | ???????????????????????????????????????????? | | ???????????????????????????????????????????? | | ???????????????????????????????????????????? | | ???????????????????????????????????????????? | | ???????????????????????????????????????????? | | ???????????????????????????????????????????? | | ???????????????????????????????????????????? | | ???????????????????????????????????????????? | | ???????????????????????????????????????????? | | ???????????????????????????????????????????? | | ???????????????????????????????????????????? | | ???????????????????????????????????????????? | | ???????????????????????????????????????????? | | ???????????????????????????????????????????? | | ???????????????????????????????????????????? | | ???????????????????????????????????????????? | | ???????????????????????????????????????????? | | ???????????????????????######????? ????????? | | ???????????????????????# #????? ??????? | | ???????????????????????# ""#????? * ??????? | | ???????????????????????# T"#????? ???????? | | ???????????????????????# @""#???? ???????? | | ???????????????????????# #???? ???????? | | ???????????????????????# #???? ????????? | | ???????????????????????# #???? ????????? | | ???????????????????????# #???#/#????????? | | ???????????????????????# #???# #???? ???? | | ???????????????? ##########+##### #???""???? | | ???????????????# ##?""" ??? | | ???????????????# # """ # | | ???????????????# + # | | ???????????????# # """ # | | ???????????????# ##???????? | | ???????????????+ ########+##### #????????? | | ???????????????###??????????????# #????????? | | ????????????????????????????????# #????????? | | ????????????????????????????????# #????????? | | ????????????????????????????????# #????????? | | ????????????????????????????????# #????????? | | ????????????????????????????????# #????????? | | ????????????????????????????????# #????????? | | ????????????????????????????????# #????????? | | ????????????????????????????????# #????????? | | ????????????????????????????????# #????????? | | ????????????????????????????????# #????????? | | ????????????????????????????????# #????????? | +----------------------------------------------------+ Best States ------------- Heat Dissipation 31 Energy Generation 10 Energy Capacity 125 Matter Stores 300 Matter Capacity 300 Sight Range 16 Terrain Scan Density 10 Evasion (%) 50 Item Schematics ----------------- None Robot Schematics ------------------ None Fabricated ------------ Nothing Alien Tech Used ----------------- None Achievements -------------- None Challenges ------------ None Game ------ Seed SpreadMeleeRedirector Manual? 0 Play Time 00:02:48 Cumulative 119.9 hours Start 2020.06.07 @ 18:56:17 End 2020.06.07 @ 18:58:48 Sessions 1 Manual Loads 0 Difficulty Rogue Special Mode None Game No. 286 Rogue 278 Adventurer 8 Explorer 0 Win Type - Total 7 Types 4/0/2/1/0/0/0 Lore% 77 Gallery% 78 Achievement% 58 Wizard Run 0 Options --------- ASCII 0 Keyboard 0 Movement Numpad Keybinds 0 Fullscreen 1 Font 12/Smallcaps Map View 83x54 Tactical HUD 1 Map Filters NONE Filters NONE Steam 1 RUN: ddfdca03-ac82-4d0d-a3df-92d412ee2dd3